[Event "Titled Tuesday Blitz August 1 Late 2023"]
[White "Ahn, Hongjin"]
[Black "dorpato"]
[WhiteFideId "13201492"]
[WhiteElo "2328"]
[BlackElo "2037"]
[Result "1-0"]
[Round "3"]
[TimeControl "180+1"]
[Date "2023.08.01"]
[WhiteClock "0:01:36"]
[BlackClock "0:00:07"]
[Board "190"]

1. e4 {[%clk 0:02:59]}  c5 {[%clk 0:02:59]} 2. c3 {[%clk 0:02:57]}  Nf6 {[%clk 0:02:58]} 3. e5 {[%clk 0:02:58]}  Nd5 {[%clk 0:02:59]} 4. d4 {[%clk 0:02:58]}  cxd4 {[%clk 0:02:59]} 5. cxd4 {[%clk 0:02:59]}  d6 {[%clk 0:02:58]} 6. Nf3 {[%clk 0:03:00]}  Nc6 {[%clk 0:02:58]} 7. Bc4 {[%clk 0:02:59]}  Nb6 {[%clk 0:02:58]} 8. Bb5 {[%clk 0:02:59]}  a6 {[%clk 0:02:52]} 9. Bxc6+ {[%clk 0:02:57]}  bxc6 {[%clk 0:02:46]} 10. O-O {[%clk 0:02:58]}  g6 {[%clk 0:02:28]} 11. Nc3 {[%clk 0:02:56]}  Bg7 {[%clk 0:02:22]} 12. a4 {[%clk 0:02:52]}  O-O {[%clk 0:02:05]} 13. a5 {[%clk 0:02:52]}  Nd7 {[%clk 0:01:54]} 14. exd6 {[%clk 0:02:37]}  exd6 {[%clk 0:01:53]} 15. Ne4 {[%clk 0:02:38]}  Nf6 {[%clk 0:01:46]} 16. Bg5 {[%clk 0:02:37]}  Bf5 {[%clk 0:01:09]} 17. Nxf6+ {[%clk 0:02:35]}  Bxf6 {[%clk 0:01:07]} 18. Bxf6 {[%clk 0:02:36]}  Qxf6 {[%clk 0:01:07]} 19. Rc1 {[%clk 0:02:36]}  Rac8 {[%clk 0:00:45]} 20. Qe2 {[%clk 0:02:33]}  Bg4 {[%clk 0:00:40]} 21. h3 {[%clk 0:02:30]}  Bxf3 {[%clk 0:00:39]} 22. Qxf3 {[%clk 0:02:31]}  Qxf3 {[%clk 0:00:24]} 23. gxf3 {[%clk 0:02:32]}  c5 {[%clk 0:00:20]} 24. dxc5 {[%clk 0:02:32]}  Rxc5 {[%clk 0:00:20]} 25. Rxc5 {[%clk 0:02:31]}  dxc5 {[%clk 0:00:21]} 26. Rc1 {[%clk 0:02:32]}  Rc8 {[%clk 0:00:20]} 27. b4 {[%clk 0:02:31]}  c4 {[%clk 0:00:19]} 28. Kf1 {[%clk 0:02:31]}  Kg7 {[%clk 0:00:20]} 29. Ke2 {[%clk 0:02:32]}  Kf6 {[%clk 0:00:20]} 30. Ke3 {[%clk 0:02:32]}  Ke5 {[%clk 0:00:20]} 31. f4+ {[%clk 0:02:28]}  Kf5 {[%clk 0:00:20]} 32. Kd4 {[%clk 0:02:26]}  Kxf4 {[%clk 0:00:20]} 33. Rxc4 {[%clk 0:02:25]}  Rd8+ {[%clk 0:00:20]} 34. Kc3+ {[%clk 0:02:24]}  Kf3 {[%clk 0:00:20]} 35. Rc7 {[%clk 0:02:22]}  f5 {[%clk 0:00:18]} 36. Rxh7 {[%clk 0:02:07]}  Kxf2 {[%clk 0:00:18]} 37. Rh6 {[%clk 0:01:51]}  Rd6 {[%clk 0:00:17]} 38. h4 {[%clk 0:01:51]}  Rc6+ {[%clk 0:00:17]} 39. Kd4 {[%clk 0:01:51]}  f4 {[%clk 0:00:15]} 40. h5 {[%clk 0:01:50]}  f3 {[%clk 0:00:15]} 41. Rxg6 {[%clk 0:01:49]}  Rc8 {[%clk 0:00:14]} 42. Rxa6 {[%clk 0:01:46]}  Kg1 {[%clk 0:00:14]} 43. Rg6+ {[%clk 0:01:43]}  Kf1 {[%clk 0:00:14]} 44. a6 {[%clk 0:01:41]}  f2 {[%clk 0:00:14]} 45. a7 {[%clk 0:01:40]}  Ke1 {[%clk 0:00:13]} 46. Re6+ {[%clk 0:01:37]}  Kd2 {[%clk 0:00:13]} 47. Rf6 {[%clk 0:01:37]}  Ke2 {[%clk 0:00:13]} 48. b5 {[%clk 0:01:37]}  f1=Q {[%clk 0:00:13]} 49. Rxf1 {[%clk 0:01:37]}  Kxf1 {[%clk 0:00:13]} 50. b6 {[%clk 0:01:37]}  Kg2 {[%clk 0:00:07]} 51. b7 {[%clk 0:01:36]} 1-0


[Site "https://www.chess.com"]

[Event "Titled Tuesday Blitz August 1 Late 2023"]
[White "Carlsen, Magnus"]
[Black "Bazeev, German"]
[WhiteFideId "1503014"]
[BlackFideId "24119350"]
[WhiteElo "3256"]
[BlackElo "2827"]
[Result "1-0"]
[Round "4"]
[TimeControl "180+1"]
[Date "2023.08.01"]
[WhiteClock "0:02:03"]
[BlackClock "0:00:35"]
[Board "1"]

1. g3 {[%clk 0:03:00]}  d5 {[%clk 0:02:43]} 2. Nf3 {[%clk 0:02:55]}  Nf6 {[%clk 0:02:43]} 3. Bg2 {[%clk 0:02:54]}  c6 {[%clk 0:02:44]} 4. O-O {[%clk 0:02:53]}  Bg4 {[%clk 0:02:44]} 5. h3 {[%clk 0:02:52]}  Bxf3 {[%clk 0:02:39]} 6. Bxf3 {[%clk 0:02:53]}  h5 {[%clk 0:02:39]} 7. d3 {[%clk 0:02:53]}  h4 {[%clk 0:02:38]} 8. g4 {[%clk 0:02:53]}  e5 {[%clk 0:02:36]} 9. e4 {[%clk 0:02:51]}  dxe4 {[%clk 0:02:36]} 10. dxe4 {[%clk 0:02:51]}  Qxd1 {[%clk 0:02:36]} 11. Rxd1 {[%clk 0:02:51]}  Nbd7 {[%clk 0:02:36]} 12. Nd2 {[%clk 0:02:51]}  Bc5 {[%clk 0:02:01]} 13. g5 {[%clk 0:02:49]}  Nh7 {[%clk 0:01:38]} 14. Bg4 {[%clk 0:02:49]}  Nhf8 {[%clk 0:01:26]} 15. Nf3 {[%clk 0:02:49]}  Ne6 {[%clk 0:01:20]} 16. b4 {[%clk 0:02:46]}  Bb6 {[%clk 0:01:14]} 17. g6 {[%clk 0:02:45]}  Nd4 {[%clk 0:00:59]} 18. gxf7+ {[%clk 0:02:44]}  Ke7 {[%clk 0:00:59]} 19. Bg5+ {[%clk 0:02:43]}  Nf6 {[%clk 0:00:56]} 20. Nxe5 {[%clk 0:02:43]}  Rhd8 {[%clk 0:00:50]} 21. c3 {[%clk 0:02:13]}  Nb5 {[%clk 0:00:45]} 22. c4 {[%clk 0:02:13]}  Nc3 {[%clk 0:00:44]} 23. Rxd8 {[%clk 0:02:09]}  Rxd8 {[%clk 0:00:44]} 24. Re1 {[%clk 0:02:09]}  Bc7 {[%clk 0:00:35]} 25. Nf3 {[%clk 0:02:03]} 1-0


[Site "https://www.chess.com"]

[Event "Titled Tuesday Blitz August 1 Late 2023"]
[White "Andreikin, Dmitry"]
[Black "Lamaze, Simon"]
[WhiteFideId "4158814"]
[BlackFideId "36069264"]
[WhiteElo "3054"]
[BlackElo "2811"]
[Result "1-0"]
[Round "4"]
[TimeControl "180+1"]
[Date "2023.08.01"]
[WhiteClock "0:02:36"]
[BlackClock "0:01:13"]
[Board "3"]

1. d4 {[%clk 0:02:59]}  d5 {[%clk 0:02:57]} 2. c4 {[%clk 0:02:59]}  e6 {[%clk 0:02:57]} 3. Nf3 {[%clk 0:02:59]}  Nf6 {[%clk 0:02:58]} 4. Bg5 {[%clk 0:02:59]}  Be7 {[%clk 0:02:58]} 5. e3 {[%clk 0:02:59]}  O-O {[%clk 0:02:57]} 6. Qc2 {[%clk 0:02:59]}  h6 {[%clk 0:02:53]} 7. Bxf6 {[%clk 0:03:00]}  Bxf6 {[%clk 0:02:52]} 8. h4 {[%clk 0:03:00]}  dxc4 {[%clk 0:02:39]} 9. Bxc4 {[%clk 0:02:56]}  c5 {[%clk 0:02:38]} 10. g4 {[%clk 0:02:53]}  g6 {[%clk 0:02:21]} 11. g5 {[%clk 0:02:51]}  hxg5 {[%clk 0:02:15]} 12. hxg5 {[%clk 0:02:52]}  Bg7 {[%clk 0:02:10]} 13. Nc3 {[%clk 0:02:52]}  cxd4 {[%clk 0:02:08]} 14. exd4 {[%clk 0:02:51]}  Nc6 {[%clk 0:01:56]} 15. O-O-O {[%clk 0:02:51]}  Qc7 {[%clk 0:01:44]} 16. Ne4 {[%clk 0:02:39]}  Qf4+ {[%clk 0:01:31]} 17. Nfd2 {[%clk 0:02:39]}  Nxd4 {[%clk 0:01:29]} 18. Qd3 {[%clk 0:02:39]}  e5 {[%clk 0:01:13]} 19. Nf6+ {[%clk 0:02:36]} 1-0


[Site "https://www.chess.com"]

[Event "Titled Tuesday Blitz August 1 Late 2023"]
[White "Krzyzanowski, Marcin"]
[Black "Sjugirov, Sanan"]
[WhiteFideId "1132199"]
[BlackFideId "4189302"]
[WhiteElo "2781"]
[BlackElo "2955"]
[Result "0-1"]
[Round "4"]
[TimeControl "180+1"]
[Date "2023.08.01"]
[WhiteClock "0:00:00"]
[BlackClock "0:00:33"]
[Board "7"]

1. e4 {[%clk 0:03:00]}  c6 {[%clk 0:02:55]} 2. Nf3 {[%clk 0:02:54]}  d5 {[%clk 0:02:56]} 3. d3 {[%clk 0:02:54]}  h6 {[%clk 0:02:49]} 4. Nc3 {[%clk 0:02:52]}  Bg4 {[%clk 0:02:40]} 5. Be2 {[%clk 0:02:46]}  e6 {[%clk 0:02:38]} 6. O-O {[%clk 0:02:46]}  Nd7 {[%clk 0:02:37]} 7. d4 {[%clk 0:02:44]}  Bb4 {[%clk 0:02:36]} 8. exd5 {[%clk 0:02:31]}  cxd5 {[%clk 0:02:36]} 9. Nb1 {[%clk 0:02:25]}  Ngf6 {[%clk 0:02:34]} 10. c3 {[%clk 0:02:24]}  Bd6 {[%clk 0:02:34]} 11. Re1 {[%clk 0:02:24]}  O-O {[%clk 0:02:31]} 12. h3 {[%clk 0:02:23]}  Bf5 {[%clk 0:02:27]} 13. Nbd2 {[%clk 0:02:22]}  Qc7 {[%clk 0:02:26]} 14. Nf1 {[%clk 0:02:19]}  Rab8 {[%clk 0:02:24]} 15. Ne3 {[%clk 0:02:09]}  Bh7 {[%clk 0:02:24]} 16. a4 {[%clk 0:02:05]}  a6 {[%clk 0:02:23]} 17. a5 {[%clk 0:02:03]}  Rbe8 {[%clk 0:02:17]} 18. Bf1 {[%clk 0:01:50]}  Nb8 {[%clk 0:02:17]} 19. Ng4 {[%clk 0:01:38]}  Ne4 {[%clk 0:02:11]} 20. Nfe5 {[%clk 0:01:10]}  f6 {[%clk 0:02:08]} 21. Nd3 {[%clk 0:01:09]}  Nc6 {[%clk 0:02:07]} 22. Qa4 {[%clk 0:00:48]}  Ne7 {[%clk 0:02:00]} 23. Qd1 {[%clk 0:00:46]}  Nf5 {[%clk 0:01:55]} 24. f4 {[%clk 0:00:39]}  Nfg3 {[%clk 0:01:53]} 25. Qf3 {[%clk 0:00:30]}  Nf5 {[%clk 0:01:34]} 26. Ngf2 {[%clk 0:00:27]}  Nfg3 {[%clk 0:01:29]} 27. Nh1 {[%clk 0:00:20]}  Nxh1 {[%clk 0:01:26]} 28. Kxh1 {[%clk 0:00:21]}  Kh8 {[%clk 0:01:24]} 29. Kg1 {[%clk 0:00:21]}  g5 {[%clk 0:01:24]} 30. Be3 {[%clk 0:00:17]}  Qg7 {[%clk 0:01:22]} 31. Nf2 {[%clk 0:00:14]}  Rg8 {[%clk 0:01:21]} 32. fxg5 {[%clk 0:00:12]}  fxg5 {[%clk 0:01:15]} 33. Nxe4 {[%clk 0:00:12]}  Bxe4 {[%clk 0:01:14]} 34. Qd1 {[%clk 0:00:11]}  Bb8 {[%clk 0:01:05]} 35. Bd3 {[%clk 0:00:11]}  Qc7 {[%clk 0:01:05]} 36. Bxe4 {[%clk 0:00:07]}  dxe4 {[%clk 0:01:06]} 37. Qg4 {[%clk 0:00:06]}  Rgf8 {[%clk 0:01:02]} 38. g3 {[%clk 0:00:06]}  Rf3 {[%clk 0:01:02]} 39. Bf2 {[%clk 0:00:05]}  Ref8 {[%clk 0:00:59]} 40. Re2 {[%clk 0:00:06]}  e3 {[%clk 0:00:57]} 41. Be1 {[%clk 0:00:06]}  Qc4 {[%clk 0:00:50]} 42. Qh5 {[%clk 0:00:04]}  Kg7 {[%clk 0:00:48]} 43. Rg2 {[%clk 0:00:03]}  Qd5 {[%clk 0:00:43]} 44. Kh2 {[%clk 0:00:03]}  Rf1 {[%clk 0:00:40]} 45. Qe2 {[%clk 0:00:03]}  Qe4 {[%clk 0:00:38]} 46. c4 {[%clk 0:00:02]}  Kg6 {[%clk 0:00:36]} 47. d5 {[%clk 0:00:02]}  exd5 {[%clk 0:00:36]} 48. cxd5 {[%clk 0:00:03]}  Bd6 {[%clk 0:00:36]} 49. Rd1 {[%clk 0:00:03]}  Qf3 {[%clk 0:00:34]} 50. Qxf3 {[%clk 0:00:03]}  R8xf3 {[%clk 0:00:35]} 51. h4 {[%clk 0:00:01]}  gxh4 {[%clk 0:00:34]} 52. Rdd2 {[%clk 0:00:01]}  exd2 {[%clk 0:00:34]} 53. Bxd2 {[%clk 0:00:02]}  hxg3+ {[%clk 0:00:34]} 54. Kh3 {[%clk 0:00:00]}  Kf5 {[%clk 0:00:33]} 0-1


[Site "https://www.chess.com"]

[Event "Titled Tuesday Blitz August 1 Late 2023"]
[White "Zakhartsov, Vladimir"]
[Black "Rozen, Eytan"]
[WhiteFideId "4145097"]
[BlackFideId "2816750"]
[WhiteElo "2926"]
[BlackElo "2758"]
[Result "0-1"]
[Round "4"]
[TimeControl "180+1"]
[Date "2023.08.01"]
[WhiteClock "0:00:10"]
[BlackClock "0:00:12"]
[Board "11"]

1. d4 {[%clk 0:03:00]}  d5 {[%clk 0:02:54]} 2. c4 {[%clk 0:02:59]}  dxc4 {[%clk 0:02:50]} 3. e4 {[%clk 0:02:57]}  Nc6 {[%clk 0:02:46]} 4. d5 {[%clk 0:02:47]}  Ne5 {[%clk 0:02:44]} 5. Nf3 {[%clk 0:02:41]}  Nxf3+ {[%clk 0:02:39]} 6. Qxf3 {[%clk 0:02:41]}  e6 {[%clk 0:02:38]} 7. Bxc4 {[%clk 0:02:39]}  Bb4+ {[%clk 0:02:33]} 8. Nc3 {[%clk 0:02:38]}  exd5 {[%clk 0:02:31]} 9. Bxd5 {[%clk 0:02:32]}  Nf6 {[%clk 0:02:27]} 10. Bb3 {[%clk 0:02:20]}  O-O {[%clk 0:01:56]} 11. O-O {[%clk 0:02:18]}  Re8 {[%clk 0:01:51]} 12. Bg5 {[%clk 0:02:15]}  Bxc3 {[%clk 0:01:41]} 13. bxc3 {[%clk 0:02:13]}  h6 {[%clk 0:01:36]} 14. Bh4 {[%clk 0:02:07]}  Qe7 {[%clk 0:01:30]} 15. Rfe1 {[%clk 0:02:01]}  g5 {[%clk 0:01:06]} 16. Bg3 {[%clk 0:01:59]}  Bg4 {[%clk 0:01:06]} 17. Qd3 {[%clk 0:01:54]}  Rad8 {[%clk 0:01:04]} 18. Qb5 {[%clk 0:01:46]}  c6 {[%clk 0:01:01]} 19. Qf1 {[%clk 0:01:33]}  Qc5 {[%clk 0:00:53]} 20. e5 {[%clk 0:01:24]}  Nh5 {[%clk 0:00:50]} 21. Re3 {[%clk 0:01:09]}  Nxg3 {[%clk 0:00:48]} 22. Rxg3 {[%clk 0:01:09]}  Be6 {[%clk 0:00:48]} 23. h4 {[%clk 0:01:01]}  Bxb3 {[%clk 0:00:38]} 24. axb3 {[%clk 0:01:02]}  Rxe5 {[%clk 0:00:38]} 25. b4 {[%clk 0:01:02]}  Qe7 {[%clk 0:00:28]} 26. hxg5 {[%clk 0:00:57]}  hxg5 {[%clk 0:00:29]} 27. Qc4 {[%clk 0:00:32]}  Re1+ {[%clk 0:00:28]} 28. Rxe1 {[%clk 0:00:31]}  Qxe1+ {[%clk 0:00:29]} 29. Kh2 {[%clk 0:00:32]}  Qe5 {[%clk 0:00:26]} 30. f4 {[%clk 0:00:26]}  Qh8+ {[%clk 0:00:22]} 31. Kg1 {[%clk 0:00:26]}  Rd1+ {[%clk 0:00:15]} 32. Kf2 {[%clk 0:00:26]}  Qh4 {[%clk 0:00:16]} 33. Kf3 {[%clk 0:00:17]}  Rd5 {[%clk 0:00:10]} 34. Qe4 {[%clk 0:00:13]}  Qh5+ {[%clk 0:00:08]} 35. Ke3 {[%clk 0:00:09]}  Kf8 {[%clk 0:00:06]} 36. Rxg5 {[%clk 0:00:05]}  Rxg5 {[%clk 0:00:06]} 37. fxg5 {[%clk 0:00:05]}  Qxg5+ {[%clk 0:00:07]} 38. Kf2 {[%clk 0:00:05]}  Qd2+ {[%clk 0:00:07]} 39. Kf1 {[%clk 0:00:05]}  Qxc3 {[%clk 0:00:06]} 40. Qh4 {[%clk 0:00:04]}  Qc1+ {[%clk 0:00:05]} 41. Kf2 {[%clk 0:00:04]}  Qd2+ {[%clk 0:00:05]} 42. Kf1 {[%clk 0:00:04]}  Qd1+ {[%clk 0:00:05]} 43. Kf2 {[%clk 0:00:05]}  Qd2+ {[%clk 0:00:06]} 44. Kf1 {[%clk 0:00:06]}  Qc1+ {[%clk 0:00:04]} 45. Kf2 {[%clk 0:00:06]}  Qb2+ {[%clk 0:00:05]} 46. Kf1 {[%clk 0:00:05]}  Qe5 {[%clk 0:00:05]} 47. Qd8+ {[%clk 0:00:04]}  Kg7 {[%clk 0:00:05]} 48. Qh4 {[%clk 0:00:04]}  Qf6+ {[%clk 0:00:05]} 49. Qxf6+ {[%clk 0:00:04]}  Kxf6 {[%clk 0:00:06]} 50. Ke2 {[%clk 0:00:04]}  Ke5 {[%clk 0:00:06]} 51. Kd3 {[%clk 0:00:05]}  b6 {[%clk 0:00:07]} 52. Kc4 {[%clk 0:00:05]}  a5 {[%clk 0:00:07]} 53. bxa5 {[%clk 0:00:05]}  bxa5 {[%clk 0:00:08]} 54. Kb3 {[%clk 0:00:06]}  c5 {[%clk 0:00:08]} 55. Ka4 {[%clk 0:00:07]}  c4 {[%clk 0:00:09]} 56. Ka3 {[%clk 0:00:08]}  c3 {[%clk 0:00:09]} 57. Kb3 {[%clk 0:00:08]}  Kd4 {[%clk 0:00:10]} 58. Kc2 {[%clk 0:00:09]}  a4 {[%clk 0:00:10]} 59. g4 {[%clk 0:00:10]}  a3 {[%clk 0:00:10]} 60. Kb3 {[%clk 0:00:10]}  Kd3 {[%clk 0:00:10]} 61. g5 {[%clk 0:00:11]}  c2 {[%clk 0:00:11]} 62. g6 {[%clk 0:00:11]}  fxg6 {[%clk 0:00:10]} 63. Ka2 {[%clk 0:00:11]}  c1=Q {[%clk 0:00:10]} 64. Kb3 {[%clk 0:00:10]}  Qb2+ {[%clk 0:00:11]} 65. Ka4 {[%clk 0:00:10]}  a2 {[%clk 0:00:12]} 0-1


[Site "https://www.chess.com"]

[Event "Titled Tuesday Blitz August 1 Late 2023"]
[White "Volovich, Vasily"]
[Black "Zhigalko, Sergei"]
[WhiteFideId "34169676"]
[BlackFideId "13502956"]
[WhiteElo "2748"]
[BlackElo "2902"]
[Result "0-1"]
[Round "4"]
[TimeControl "180+1"]
[Date "2023.08.01"]
[WhiteClock "0:00:00"]
[BlackClock "0:00:39"]
[Board "12"]

1. e4 {[%clk 0:03:00]}  c5 {[%clk 0:02:59]} 2. c3 {[%clk 0:03:01]}  Nf6 {[%clk 0:02:59]} 3. e5 {[%clk 0:03:01]}  Nd5 {[%clk 0:02:59]} 4. d4 {[%clk 0:03:02]}  cxd4 {[%clk 0:03:00]} 5. cxd4 {[%clk 0:03:02]}  d6 {[%clk 0:03:00]} 6. Nf3 {[%clk 0:03:00]}  Nc6 {[%clk 0:02:59]} 7. Bc4 {[%clk 0:02:59]}  Nb6 {[%clk 0:02:59]} 8. Bb5 {[%clk 0:02:58]}  d5 {[%clk 0:03:00]} 9. O-O {[%clk 0:02:57]}  Bf5 {[%clk 0:02:59]} 10. Nc3 {[%clk 0:02:55]}  Rc8 {[%clk 0:02:58]} 11. Be3 {[%clk 0:02:47]}  e6 {[%clk 0:02:58]} 12. Rc1 {[%clk 0:02:46]}  a6 {[%clk 0:02:53]} 13. Bxc6+ {[%clk 0:02:44]}  Rxc6 {[%clk 0:02:54]} 14. Qb3 {[%clk 0:02:24]}  Qc7 {[%clk 0:02:32]} 15. Na4 {[%clk 0:02:15]}  Nc4 {[%clk 0:02:32]} 16. Nh4 {[%clk 0:01:55]}  Bg6 {[%clk 0:02:14]} 17. Nxg6 {[%clk 0:01:54]}  hxg6 {[%clk 0:02:15]} 18. Nc3 {[%clk 0:01:24]}  Be7 {[%clk 0:02:08]} 19. Qc2 {[%clk 0:00:58]}  O-O {[%clk 0:02:03]} 20. Qe2 {[%clk 0:00:55]}  Rc8 {[%clk 0:02:01]} 21. Nd1 {[%clk 0:00:42]}  Nxe5 {[%clk 0:01:05]} 22. dxe5 {[%clk 0:00:34]}  Rxc1 {[%clk 0:01:04]} 23. Bxc1 {[%clk 0:00:34]}  Qxc1 {[%clk 0:01:05]} 24. Ne3 {[%clk 0:00:30]}  Qc7 {[%clk 0:01:00]} 25. f4 {[%clk 0:00:16]}  Bc5 {[%clk 0:00:55]} 26. Kh1 {[%clk 0:00:16]}  Bxe3 {[%clk 0:00:52]} 27. Qxe3 {[%clk 0:00:17]}  Qc5 {[%clk 0:00:49]} 28. Qf3 {[%clk 0:00:12]}  Qc2 {[%clk 0:00:47]} 29. g4 {[%clk 0:00:05]}  Qxb2 {[%clk 0:00:45]} 30. f5 {[%clk 0:00:05]}  gxf5 {[%clk 0:00:38]} 31. gxf5 {[%clk 0:00:06]}  Qxe5 {[%clk 0:00:38]} 32. fxe6 {[%clk 0:00:00]}  Qxe6 {[%clk 0:00:39]} 0-1


[Site "https://www.chess.com"]

[Event "Titled Tuesday Blitz August 1 Late 2023"]
[White "Kowalski, Igor"]
[Black "Karaoglan, Doruk"]
[WhiteFideId "1172468"]
[BlackFideId "6390927"]
[WhiteElo "2865"]
[BlackElo "2626"]
[Result "0-1"]
[Round "4"]
[TimeControl "180+1"]
[Date "2023.08.01"]
[WhiteClock "0:00:05"]
[BlackClock "0:00:42"]
[Board "16"]

1. Nf3 {[%clk 0:03:00]}  Nf6 {[%clk 0:02:59]} 2. d4 {[%clk 0:02:59]}  g6 {[%clk 0:02:59]} 3. Nc3 {[%clk 0:03:00]}  d5 {[%clk 0:02:59]} 4. Bf4 {[%clk 0:03:00]}  Bg7 {[%clk 0:02:59]} 5. e3 {[%clk 0:03:01]}  O-O {[%clk 0:03:00]} 6. Be2 {[%clk 0:03:01]}  c5 {[%clk 0:03:00]} 7. O-O {[%clk 0:03:01]}  Nc6 {[%clk 0:02:58]} 8. dxc5 {[%clk 0:03:01]}  Be6 {[%clk 0:02:46]} 9. Nd4 {[%clk 0:03:00]}  Qa5 {[%clk 0:02:41]} 10. Ncb5 {[%clk 0:02:44]}  Rac8 {[%clk 0:02:35]} 11. c3 {[%clk 0:02:37]}  a6 {[%clk 0:02:16]} 12. Nxc6 {[%clk 0:02:25]}  bxc6 {[%clk 0:02:13]} 13. b4 {[%clk 0:02:23]}  Qd8 {[%clk 0:02:10]} 14. Na7 {[%clk 0:02:22]}  Ne4 {[%clk 0:02:10]} 15. Bxa6 {[%clk 0:02:00]}  Nxc3 {[%clk 0:02:04]} 16. Qc2 {[%clk 0:01:57]}  Bf5 {[%clk 0:01:52]} 17. Qb3 {[%clk 0:01:54]}  Rc7 {[%clk 0:01:21]} 18. Bxc7 {[%clk 0:00:52]}  Qxc7 {[%clk 0:01:21]} 19. Rfc1 {[%clk 0:00:47]}  Qxa7 {[%clk 0:01:19]} 20. Bf1 {[%clk 0:00:47]}  Ne4 {[%clk 0:01:17]} 21. a4 {[%clk 0:00:48]}  Bxa1 {[%clk 0:01:16]} 22. Rxa1 {[%clk 0:00:49]}  Nd2 {[%clk 0:01:16]} 23. Qc3 {[%clk 0:00:48]}  Nxf1 {[%clk 0:01:15]} 24. Kxf1 {[%clk 0:00:49]}  Rb8 {[%clk 0:01:14]} 25. Ke1 {[%clk 0:00:38]}  Qa6 {[%clk 0:01:13]} 26. Kd2 {[%clk 0:00:31]}  e5 {[%clk 0:01:08]} 27. Qxe5 {[%clk 0:00:19]}  Rxb4 {[%clk 0:00:45]} 28. Qe8+ {[%clk 0:00:19]}  Kg7 {[%clk 0:00:45]} 29. Qe5+ {[%clk 0:00:19]}  Kh6 {[%clk 0:00:45]} 30. f4 {[%clk 0:00:08]}  Qd3+ {[%clk 0:00:43]} 31. Ke1 {[%clk 0:00:09]}  Re4 {[%clk 0:00:43]} 32. Qf6 {[%clk 0:00:05]}  Rxe3+ {[%clk 0:00:43]} 33. Kf2 {[%clk 0:00:06]}  Qd2+ {[%clk 0:00:41]} 34. Kf1 {[%clk 0:00:05]}  Bd3+ {[%clk 0:00:41]} 35. Kg1 {[%clk 0:00:05]}  Re1+ {[%clk 0:00:42]} 0-1


[Site "https://www.chess.com"]

[Event "Titled Tuesday Blitz August 1 Late 2023"]
[White "Maksimovic, Bojan"]
[Black "Wu, Rochelle"]
[WhiteFideId "14408120"]
[BlackFideId "30908132"]
[WhiteElo "2859"]
[BlackElo "2618"]
[Result "0-1"]
[Round "4"]
[TimeControl "180+1"]
[Date "2023.08.01"]
[WhiteClock "0:00:00"]
[BlackClock "0:00:09"]
[Board "17"]

1. Nf3 {[%clk 0:03:00]}  d5 {[%clk 0:02:59]} 2. g3 {[%clk 0:03:01]}  Nf6 {[%clk 0:02:59]} 3. Bg2 {[%clk 0:03:02]}  c6 {[%clk 0:03:00]} 4. O-O {[%clk 0:03:02]}  Bg4 {[%clk 0:03:00]} 5. d3 {[%clk 0:03:03]}  Nbd7 {[%clk 0:03:00]} 6. Nbd2 {[%clk 0:03:03]}  e5 {[%clk 0:03:00]} 7. e4 {[%clk 0:03:04]}  dxe4 {[%clk 0:03:01]} 8. dxe4 {[%clk 0:03:04]}  Bc5 {[%clk 0:03:01]} 9. h3 {[%clk 0:03:02]}  Bh5 {[%clk 0:03:01]} 10. c3 {[%clk 0:02:58]}  O-O {[%clk 0:03:01]} 11. Qc2 {[%clk 0:02:59]}  Re8 {[%clk 0:03:01]} 12. b4 {[%clk 0:02:57]}  Bb6 {[%clk 0:03:00]} 13. Nc4 {[%clk 0:02:55]}  Bc7 {[%clk 0:03:00]} 14. Rd1 {[%clk 0:02:51]}  Qe7 {[%clk 0:03:00]} 15. a4 {[%clk 0:02:43]}  Rad8 {[%clk 0:02:57]} 16. Ba3 {[%clk 0:02:18]}  Qe6 {[%clk 0:01:45]} 17. Ng5 {[%clk 0:02:17]}  Bxd1 {[%clk 0:01:23]} 18. Rxd1 {[%clk 0:02:16]}  Qe7 {[%clk 0:01:20]} 19. Ne3 {[%clk 0:02:02]}  Nf8 {[%clk 0:01:15]} 20. Ra1 {[%clk 0:01:58]}  Qd7 {[%clk 0:01:14]} 21. h4 {[%clk 0:01:47]}  Qd3 {[%clk 0:01:11]} 22. Qb3 {[%clk 0:01:45]}  Ne6 {[%clk 0:01:02]} 23. Bf1 {[%clk 0:01:29]}  Qd7 {[%clk 0:00:58]} 24. Rd1 {[%clk 0:01:25]}  Qc8 {[%clk 0:00:50]} 25. Rxd8 {[%clk 0:01:23]}  Rxd8 {[%clk 0:00:35]} 26. Bc4 {[%clk 0:01:15]}  Nxg5 {[%clk 0:00:33]} 27. hxg5 {[%clk 0:01:15]}  Nxe4 {[%clk 0:00:33]} 28. Bxf7+ {[%clk 0:01:15]}  Kh8 {[%clk 0:00:33]} 29. Be6 {[%clk 0:01:16]}  Qb8 {[%clk 0:00:33]} 30. g6 {[%clk 0:01:13]}  Bb6 {[%clk 0:00:30]} 31. Qc4 {[%clk 0:01:09]}  Nf6 {[%clk 0:00:24]} 32. Bc1 {[%clk 0:01:00]}  Qd6 {[%clk 0:00:24]} 33. a5 {[%clk 0:00:56]}  Bc7 {[%clk 0:00:21]} 34. gxh7 {[%clk 0:00:52]}  Qd3 {[%clk 0:00:21]} 35. Qxd3 {[%clk 0:00:15]}  Rxd3 {[%clk 0:00:21]} 36. c4 {[%clk 0:00:15]}  Rb3 {[%clk 0:00:17]} 37. Bd2 {[%clk 0:00:12]}  Ne4 {[%clk 0:00:17]} 38. Be1 {[%clk 0:00:13]}  Rb1 {[%clk 0:00:17]} 39. Kf1 {[%clk 0:00:13]}  Bd6 {[%clk 0:00:17]} 40. c5 {[%clk 0:00:13]}  Be7 {[%clk 0:00:17]} 41. Ke2 {[%clk 0:00:13]}  Bg5 {[%clk 0:00:17]} 42. Nc4 {[%clk 0:00:13]}  Rc1 {[%clk 0:00:16]} 43. Nd6 {[%clk 0:00:07]}  Nxd6 {[%clk 0:00:16]} 44. cxd6 {[%clk 0:00:08]}  b6 {[%clk 0:00:16]} 45. a6 {[%clk 0:00:07]}  Ra1 {[%clk 0:00:14]} 46. Bc3 {[%clk 0:00:02]}  Rxa6 {[%clk 0:00:14]} 47. Bxe5 {[%clk 0:00:02]}  Bd8 {[%clk 0:00:14]} 48. Bg8 {[%clk 0:00:01]}  Ra3 {[%clk 0:00:12]} 49. g4 {[%clk 0:00:00]}  Ra4 {[%clk 0:00:09]} 0-1


[Site "https://www.chess.com"]